Cogmind - Beta 15 @@@ ROGUE MODE // 2025.10.11 @ 23:12:54 Player: souux Result: Destroyed by TO-9ZH(R) with Subdweller Laser Performance ------------- Evolutions (0) 0 Regions Visited (2) 400 Robots Destroyed (15) 75 Value Destroyed (292) 292 Prototype IDs (0) 0 Alien Tech Used (0) 0 Bonus (0) 0 TOTAL SCORE: 767 Bonus ------- None Cogmind --------- Core Integrity 0/250 Matter 274/300 Energy 247/250 System Corruption 0% Temperature Cool (6) Movement Rolling (135) Ox3 Location -10/Subcaves Parts ------- > --- POWER (1) -------- Ion Engine > --- PROPULSION (2) --- Wheel Compact Wheel > --- UTILITY (2) ------ Huge Storage Unit > --- WEAPON (2) ------- Battle Cannon > --- INVENTORY (25) --- Light Treads Light Treads Wheel Wheel Wheel Wheel Subdweller Monowheel Large Matter Pod (57) Improved Terrain Scanner Seismic Detector Makeshift Transmission Jammer ECM Suite Makeshift ECM Suite Subdweller Laser Light Assault Rifle Subdweller Shrapnel Launcher Hammer Peak State ------------ > --- POWER ------------ Makeshift Power Source > --- PROPULSION ------- Wheel Compact Wheel > --- UTILITY ---------- Huge Storage Unit > --- WEAPON ----------- Battle Cannon > --- INVENTORY -------- Light Treads Light Treads Wheel Wheel Wheel Large Matter Pod Improved Terrain Scanner Seismic Detector Makeshift Transmission Jammer ECM Suite Makeshift ECM Suite Subdweller Laser Light Assault Rifle Subdweller Shrapnel Launcher Hammer [Rating: 11] Favorites ----------- Power Ion Engine Engine Ion Engine Propulsion Wheel Treads Light Treads Wheel Wheel Utility Huge Storage Unit Device Seismic Detector Storage Huge Storage Unit Weapon Light Assault Rifle Ballistic Gun Light Assault Rifle Ballistic Cannon Battle Cannon Build | -11 -10 -10 ------- Run | Yrd Mat Sub Slots Evolved . | . . . Power . | . . . Propulsion . | . . . Utility . | . . . Weapon . | . . . Parts Attached 16 | 7 1 8 Power 4 | 1 . 3 Engine 4 | 1 . 3 Core . | . . . Reactor . | . . . Propulsion 5 | 2 . 3 Treads 1 | . . 1 Leg . | . . . Wheel 4 | 2 . 2 Hover . | . . . Flight . | . . . Utility 3 | 2 1 . Device 1 | 1 . . Storage 2 | 1 1 . Processor . | . . . Hackware . | . . . Protection . | . . . Artifact . | . . . Weapon 4 | 2 . 2 Energy Gun . | . . . Energy Cannon . | . . . Ballistic Gun 3 | 2 . 1 Ballistic Cannon 1 | . . 1 Launcher . | . . . Special Weapon . | . . . Impact Weapon . | . . . Slashing Weapon . | . . . Piercing Weapon . | . . . Special Melee Weapon . | . . . Unidentified Prototypes . | . . . Parts Lost 8 | . . 8 Power 3 | . . 3 Propulsion 1 | . . 1 Utility 1 | . . 1 Weapon 3 | . . 3 Highest Loss Streak 6 | . . 6 To Critical Strikes . | . . . Average Backups 11 | 5 10 13 Power . | . 1 . Propulsion 5 | 3 6 5 Utility 3 | . 2 4 Weapon 1 | . 1 2 Tool/Special . | . . . Unused Backups 20 | 4 1 15 Power . | . . . Propulsion 8 | 3 . 5 Utility 7 | . 1 6 Weapon 5 | 1 . 4 Tool/Special . | . . . Average Slot Usage (%) 89 | . 100 81 Engine 13 | . 14 13 Wheel 27 | . 28 26 Device 8 | . 14 5 Storage 14 | . 14 14 Ballistic Gun 18 | . 28 12 Ballistic Cannon 3 | . . 6 Peak Build Rating 11 | 8 8 11 Average Rating 7 | 5 8 8 On Entrance 5 | . 8 8 Naked Turns . | . . . Heaviest Build 89 | 14 89 89 Greatest Support 26 | 20 20 26 Greatest Overweight (x) 4 | . 4 4 Average Overweight (x) 3 | . 3 3 Largest Inventory Capacity 25 | 8 25 25 Average Capacity 22 | 7 24 25 Most Carried 17 | 8 13 17 Average Carried 11 | 5 11 13 Final Capacity 25 | 8 25 25 Final Carried 17 | 8 13 17 Class Distribution -------------------- 100% | Mutant Dominant Class ---------------- Mutant | -10/Materials Mutant | -10/Subcaves Resources | -11 -10 -10 ----------- Run | Yrd Mat Sub Matter Collected 581 | 322 . 259 Remotely . | . . . Salvage Created 383 | 162 88 133 Parts 30 | 17 5 8 Haulers Intercepted . | . . . Recyclers Shooed 1 | . 1 . Parts Field Recycled . | . . . Retrieved Matter . | . . . Parts Self-Destructed 9 | . . 9 Prevented . | . . . Kills | -11 -10 -10 ------- Run | Yrd Mat Sub Combat Hostiles Destroyed 7 | . 2 5 Guns 5 | . 2 3 Cannons 2 | . . 2 Classes Destroyed 6 | 2 1 3 Tunneler 5 | 5 . . Recycler 1 | 1 . . Turret 2 | . . 2 Swarmer 3 | . . 3 Grunt 2 | . 2 . Subdweller 2 | . . 2 Best Kill Streak 6 | 6 2 3 Combat Bots Only 3 | . 2 3 Max Kills in Single Turn 1 | 1 1 1 Gunslinging . | . . . Exploded . | . . . Melee . | . . . Uniques/NPCs Destroyed . | . . . Combat | -11 -10 -10 -------- Run | Yrd Mat Sub Hostile Shots Fired 181 | . 10 171 Missed 69 | . 4 65 Hits 112 | . 6 106 Projectile 112 | . 6 106 Damage Taken 1000 | . 79 921 Core 267 | . . 267 Absorbed by Shields . | . . . Core Remaining (%) 100 | 100 . . Volleys Fired 59 | 13 7 39 Largest 2 | 2 2 2 Hottest 40 | 40 40 40 Shots Fired 100 | 26 14 60 Gun 83 | 26 14 43 Cannon 17 | . . 17 Launcher . | . . . Special . | . . . Kinetic 100 | 26 14 60 Thermal . | . . . Explosive . | . . . Electromagnetic . | . . . Robot Hit Streak 14 | 7 14 12 Robot Miss Streak 2 | 2 1 2 Penetration Max . | . . . Secondary Targets 1 | . . 1 Max Gunslinging Chain 1 | . . 1 Shots Hit Robots 75 | 15 13 47 Core Hits 24 | 7 5 12 Critical Kills . | . . . Critical Parts Destroyed 1 | . . 1 Critical Strikes 2 | . . 2 Destroy 1 | . . 1 Blast 1 | . . 1 Melee Attacks . | . . . Impact . | . . . Slashing . | . . . Piercing . | . . . Sneak Attacks . | . . . Combat Hostiles . | . . . Follow-up Attacks . | . . . Damage Inflicted 886 | 169 133 584 Guns 594 | 169 133 292 Cannons 292 | . . 292 Explosions . | . . . Melee . | . . . Ramming . | . . . Kinetic 886 | 169 133 584 Thermal . | . . . Explosive . | . . . Electromagnetic . | . . . Impact . | . . . Slashing . | . . . Piercing . | . . . Highest Corruption . | . . . Average Corruption . | . . . Corruption Purged . | . . . Corruption Blocked . | . . . Overload Shots . | . . . Overflow Damage . | . . . Projectiles . | . . . Explosions . | . . . Melee . | . . . Knockbacks 3 | . . 3 Impact . | . . . Kinetic 3 | . . 3 Secondary . | . . . Self-Inflicted Damage . | . . . Shots . | . . . Rammed . | . . . Targets Rammed . | . . . Kicked . | . . . Crushed . | . . . Highest Temperature 15 | . 15 . Average Temperature 11 | . 11 . Received Heat Transfer 537 | . 51 486 Siege Activations . | . . . Martial Activations . | . . . Shielding Activations . | . . . Robots Disrupted . | . . . Combat Hostiles . | . . . Robots Corrupted . | . . . Combat Hostiles . | . . . Parts Fried . | . . . Impact Corruptions . | . . . Robots Melted . | . . . Combat Hostiles . | . . . Parts Melted . | . . . Heat Transferred . | . . . Parts Sabotaged . | . . . Parts Stolen . | . . . Parts Stripped . | . . . Power Chain Reactions . | . . . Alert | -11 -10 -10 ------- Run | Yrd Mat Sub Maximum Alert Level . | . . . Low Security (%) 100 | 100 100 . Level 1 . | . . . Level 2 . | . . . Level 3 . | . . . Level 4 . | . . . Level 5 . | . . . High Security . | . . . Max Security . | . . . Peak Influence 50 | 20 50 . Initial . | . . . Average 5 | 4 5 . Influence Increases 375 | 30 50 295 Destroy 0b10 Robot/C 140 | . 40 100 Destroy 0b10 Robot/NC 30 | 30 . . Destroy Leader 10 | . 10 . Lose Combat Pursuer 195 | . . 195 Influence Decreases 352 | 30 50 272 Time Decay 272 | 30 50 192 Lost Part 80 | . . 80 Squads Dispatched 1 | . 1 . Investigation 1 | . 1 . Extermination . | . . . Reinforcement . | . . . Assault . | . . . Garrison . | . . . Intercept . | . . . Searches Triggered . | . . . Construction Impeded . | . . . Haulers Reinforced . | . . . Active Scanning Responses . | . . . Cargo Convoy Interrupts . | . . . Stealth | -11 -10 -10 --------- Run | Yrd Mat Sub Distress Signals . | . . . Communications Jammed . | . . . Distress Signals . | . . . Times Spotted 23 | . 3 20 Peak Tracking Total 5 | . 3 5 Tactical Retreats 5 | . . 5 Traps | -11 -10 -10 ------- Run | Yrd Mat Sub Traps Triggered 1 | . 1 . Indirectly . | . . . Trap Hack Attempts . | . . . Triggered . | . . . Disarmed . | . . . Reprogrammed . | . . . Reused . | . . . Traps Extracted . | . . . Installed . | . . . Triggered . | . . . Machines | -11 -10 -10 ---------- Run | Yrd Mat Sub Machines Disabled . | . . . Max in Single Turn . | . . . Machines Repaired . | . . . Machines Dismantled . | . . . Machines Sabotaged . | . . . Overloaded Fab Kills . | . . . Hacking | -11 -10 -10 --------- Run | Yrd Mat Sub Machines Accessed . | . . . Terminals . | . . . Fabricators . | . . . Repair Stations . | . . . Recycling Units . | . . . Scanalyzers . | . . . Garrison Access . | . . . Total Hacks . | . . . Successful . | . . . Failed . | . . . Catastrophic . | . . . Database Lockouts . | . . . Manual . | . . . Terminals . | . . . Fabricators . | . . . Repair Stations . | . . . Recycling Units . | . . . Scanalyzers . | . . . Garrison Access . | . . . Terminal Hacks . | . . . Fabricator Hacks . | . . . Repair Station Hacks . | . . . Recycling Unit Hacks . | . . . Scanalyzer . | . . . Garrison Access Hacks . | . . . Unauthorized Hacks . | . . . Terminals . | . . . Fabricators . | . . . Repair Stations . | . . . Recycling Units . | . . . Scanalyzers . | . . . Garrison Access . | . . . Data Cores Recovered . | . . . Used . | . . . Hacking Detections . | . . . Full Trace Events . | . . . Feedback Events . | . . . Feedback Blocked . | . . . Robot Schematics Acquired . | . . . Robots Built . | . . . Authchips . | . . . Time . | . . . Total Robot Build Rating . | . . . Part Schematics Acquired . | . . . Parts Built . | . . . Authchips . | . . . Time . | . . . Total Part Build Rating . | . . . Parts Repaired . | . . . Time . | . . . Parts Recycled . | . . . Recycled Matter . | . . . Retrieved Matter . | . . . Retrieved Components . | . . . Parts Scanalyzed . | . . . Part Schematics Acquired . | . . . Parts Damaged . | . . . Bothacking | -11 -10 -10 ------------ Run | Yrd Mat Sub Used RIF Installer . | . . . Robots Hacked . | . . . Non-combat . | . . . Combat . | . . . Robot Hacks Applied . | . . . Relay Couplers Released . | . . . Fabnet Peak Effective % . | . . . Robots Rewired . | . . . Allies Hacked . | . . . Hacks Repelled . | . . . Allies | -11 -10 -10 -------- Run | Yrd Mat Sub Total Allies . | . . . Largest Group . | . . . Highest-Rated Group . | . . . Highest-Rated Ally . | . . . Total Orders . | . . . Ally Attacks . | . . . Total Damage . | . . . Kills . | . . . Allies Corrupted . | . . . Allies Melted . | . . . Intel | -11 -10 -10 ------- Run | Yrd Mat Sub Active Infowar (turns) 636 | 31 388 217 Seismic 636 | 31 388 217 Robot Analysis Total . | . . . Derelict Logs Recovered 1 | . . 1 Drone Launches . | . . . Drone Recoveries . | . . . Exploration | -11 -10 -10 ------------- Run | Yrd Mat Sub Turns Passed 1088 | 140 388 560 Spaces Moved 665 | 97 264 304 Core 1 | 1 . . Treads 7 | . . 7 Legs . | . . . Wheels 657 | 96 264 297 Hover . | . . . Flight . | . . . Fastest Speed 50 | 50 80 135 Average Speed 131 | 79 135 145 Slowest Speed 480 | 80 140 480 Overloaded Moves . | . . . Propulsion Burnouts . | . . . Robots Hopped . | . . . Potential Cave-ins . | . . . Cave-ins Triggered . | . . . Exploration Rate (%) 19 | 4 33 20 Regions Visited 2 Branch Regions 1 Pre-discovered Areas 1 | . . 1 Known Exits Taken . | . . . Unknown Exits Taken 2 | 1 1 . Scrap Searched . | . . . Spaces Dug . | . . . Terrain Destroyed . | . . . Melee . | . . . Projectile . | . . . AOE . | . . . Terrain Rammed . | . . . Walls Destroyed . | . . . Machines Disabled . | . . . Actions | -11 -10 -10 --------- Run | Yrd Mat Sub Total 790 | 138 282 370 Wait 12 | 1 3 8 Move 663 | 96 263 304 Hop . | . . . Pick Up 32 | 16 6 10 Fast Attach 4 | 4 . . Attach 9 | 3 . 6 Detach . | . . . Swap 4 | . 1 3 Drop 7 | 5 2 . Fire 59 | 13 7 39 Melee . | . . . Ram . | . . . Kick . | . . . Crush . | . . . Escape Stasis . | . . . Rewire . | . . . Trap . | . . . Miscellaneous . | . . . Route ------- -11/Scrapyard -10/Materials (discovered 3 exits: [*Min x2] / [*Sub]) -10/Subcaves (discovered 1 exit: [*Rec]) History --------- Turn | Location | Event 23 | -11/Scrapyard | Discovered new exit (range 16) 141 | -11/Scrapyard | Entered Materials 281 | -10/Materials | Discovered new exit (range 6) 310 | -10/Materials | Build established: Mutant 475 | -10/Materials | Discovered new exit (range 9) 514 | -10/Materials | Discovered new exit (range 8) 529 | -10/Materials | Entered Subcaves 552 | -10/Subcaves | Learned location of Storage (-7) 704 | -10/Subcaves | Discovered new exit (range 15) 772 | -10/Subcaves | Core integrity fell below 50% 808 | -10/Subcaves | Lost 6 parts (1p1n1u3w) 1000 | -10/Subcaves | Core integrity fell below 20% 1089 | -10/Subcaves | Destroyed by TO-9ZH(R) with Subdweller Laser Last Messages --------------- 00922_ Acquired 4 matter. 00976_ Acquired 7 matter. 01007_ Acquired 35 matter. 01008_ C9-2ZG(R): "LEAVESUB!" 01008_ C9-2ZG(R) knocked back. 01013_ Subatomizers dissect the Ion Engine. 01014_ Mak. Power Source destroyed. 01014_ C9-2ZG(R) suffers critical hit (Blast). 01014_ C9-2ZG(R) destroyed. 01017_ Acquired Ion Engine. 01021_ Acquired Wheel. 01023_ Subatomizers dissect the Disposable Heat Sink. 01023_ Acquired Sub. Monowheel. 01029_ Acquired 20 matter. 01032_ Acquired 4 matter. 01036_ Subatomizers dissect the Disposable Heat Sink. 01083_ TO-9ZH(R) knocked back. 01089_ 3U-NQT(R) knocked back. Map ----- +----------------------------------------------------+ | #????????????????????????????????????????????????? | | ##???????????????????????????????????????????????? | | #???####????????????????????????????????????????? | | ##?? ??????????????????????????????????????? | | ### ??????????????????????????????????????? | | ? ??????????????????????????????????????? | | ???????????????????????????????????????? | | # ???????????????????????????????????????? | | # ???????????????????????????????????????? | | # ????????????????????????????????????????? | | ## ???????????????????????????????????????? | | #? ????????????????????????????????????????? | | % #????????????????????????????????????????????? | | ###??????????????????? ??????????????????????? | | #?????? ?????????# ??????????????????????? | | #????? ????????# ???????????????????????? | | # % ##### #??????### ???????????????????????? | | # # #?????## ???????????????????????? | | % #?????# ??????###???????????????? | | #?????? ????? #####???????????? | | # % % ######??????# ##??? #???????????? | | # % #???????????? #?## #???????????? | | # ##?####?????##R ## #????????????? | | ## % ### #####?# R # ##???????????? | | ### # ### #???????????? | | ### #@ #??????????????? | | # ## ### #??????????????? | | # ! ## ##??# #?????????????? | | #% #####????# #?????????????? | | ##??????# #?????????????? | | #???????## #?????????????? | | # ###### ##?????????? #?????????????? | | ## ##???# #???????????? ##?????????????? | | ?## ##????## ##???????????? #?????????????? | | ??##### ##??#### ""#?????????????#?????????????? | | ??????####??##"" """##???????????????????????????? | | ????????????#"" """"#????????????????????????????? | | ????????????# " "###????????????????????????????? | | ????????????#" """#??????????????????????????????? | | ????????????#"" """ ?????????????????????????????? | | ????????????##"" "" ????????????????????????????? | | ?????????????#### ???????????????????????????? | | ????????????????? ??????????????????????????? | | ????????????????? ? #??????????????????????????? | | ????????????????? ??????????????????????????????? | | ?????????????????????????????????????????????????? | | ?????????????????????????????????????????????????? | | ?????????????????????????????????????????????????? | | ?????????????????????????????????????????????????? | | ?????????????????????????????????????????????????? | +----------------------------------------------------+ Best States ------------- Heat Dissipation 25 Energy Generation 15 Energy Capacity 250 Matter Stores 300 Matter Capacity 300 Sight Range 16 Terrain Scan Density 10 Evasion (%) 44 Recoil Reduction 1 Item Schematics ----------------- None Robot Schematics ------------------ None Fabricated ------------ Nothing Repaired ---------- Nothing Alien Tech Used ----------------- None Achievements -------------- None Challenges ------------ None Game ------ Seed GunCoilShell Manual? 0 Play Time 00:11:05 Cumulative 55.9 hours Start 2025.10.11 @ 23:02:09 End 2025.10.11 @ 23:12:54 Sessions 1 Manual Loads 0 Difficulty Rogue Special Mode None Game No. 52 Rogue 52 Adventurer 0 Explorer 0 Win Type - Total 0 Types 0/0/0/0/0/0/0/0/0/0 Lore% 16 Gallery% 33 Achievement% 31 Wizard Run 0 Options --------- Layout 1 ASCII 0 Keyboard 0 Movement Mouse Keybinds 0 Fullscreen 1 Font 24/Smallcaps Map View 50x35 Zoom Use 31% Tactical HUD 1 Map Filters NONE Filters NONE Steam 1 RUN: 2fdaa1fe-6b8f-4103-abee-4edd149770fd